[Event "Slovakian ECo-C Extraliga 2024-25"]
[Site "Slovakia"]
[Date "2025.02.16"]
[Round "6"]
[White "Balogh, Peter"]
[Black "Ocko, Martin"]
[Result "0-1"]
[Annotator "ChessBase"]
[ECO "B35"]
[WhiteElo "2198"]
[BlackElo "2052"]
[PlyCount "68"]
[EventDate "2024.09.12"]
[EventType "team-tourn"]
[EventCountry "SVK"]
[SourceTitle "playchess.com"]
[Source "ChessBase"]
[SourceQuality "1"]
[TimeControl "5400+30"]

1. e4 {[%emt 0:01:43]} c5 {[%emt 0:03:21]} 2. Nf3 {[%emt 0:00:24]} Nc6 {[%emt 0:00:38]} 3. Nc3 {[%emt 0:01:20]} g6 {[%emt 0:02:49]} 4. d4 {[%emt 0:00:09]} cxd4 {[%emt 0:00:00]} 5. Nxd4 {[%emt 0:00:05]} Bg7 {[%emt 0:00:38]} 6. Be3 {[%emt 0:04:30]} Nf6 {[%emt 0:01:48]} 7. Bc4 {[%emt 0:02:47]} Qa5 {[%emt 0:04:25]} 8. O-O {[%emt 0:03:21]} O-O {[%emt 0:07:07]} 9. h3 {[%emt 0:07:18]} d6 {[%emt 0:01:47]} 10. Bb3 {[%emt 0:14:09]} Qh5 {[%emt 0:23:46]} 11. Nd5 Qxd1 {[%emt 0:12:25]} 12. Raxd1 {[%emt 0:00:20]} Nxd5 {[%emt 0:03:41]} 13. exd5 {[%emt 0:06:19]} Na5 {[%emt 0:03:43]} 14. Rfe1 {[%emt 0:07:25]} Nxb3 {[%emt 0:05:39]} 15. cxb3 {[%emt 0:04:15]} Bf6 {[%emt 0:04:34]} 16. Rc1 {[%emt 0:04:20]} a6 {[%emt 0:04:01]} 17. g4 {[%emt 0:07:31]} e5 {[%emt 0:02:07]} 18. Nf3 {[%emt 0:00:57]} Bd8 {[%emt 0:01:18]} 19. Nd2 {[%emt 0:04:36]} Ba5 {[%emt 0:00:41]} 20. a3 {[%emt 0:03:43]} f5 {[%emt 0:01:00]} 21. b4 {[%emt 0:01:11]} Bd8 {[%emt 0:03:10]} 22. Nc4 {[%emt 0:03:12]} fxg4 {[%emt 0:00:27]} 23. Nxd6 {[%emt 0:03:08]} Bh4 {[%emt 0:03:03]} 24. hxg4 {[%emt 0:01:28]} Bxg4 {[%emt 0:02:51]} 25. Rc4 {[%emt 0:15:38]} h5 {[%emt 0:00:51]} 26. Nxb7 {[%emt 0:00:40]} Rf3 {[%emt 0:01:30]} 27. d6 {[%emt 0:02:32]} Raf8 {[%emt 0:00:33]} 28. d7 {[%emt 0:02:54]} Rh3 {[%emt 0:01:14]} 29. Rxg4 {[%emt 0:00:00]} hxg4 {[%emt 0:02:04]} 30. Bb6 {[%emt 0:00:00]} g3 31. d8=Q {[%emt 0:00:00]} gxf2+ 32. Bxf2 {[%emt 0:01:12]} Bxf2+ {[%emt 0:00:22]} 33. Kg2 {[%emt 0:00:05]} Rg3+ {[%emt 0:00:18]} 34. Kh2 {[%emt 0:00:00]} Rxd8 {[%emt 0:00:53]} 0-1

[Event "Slovakian ECo-C Extraliga 2024-25"]
[Site "Slovakia"]
[Date "2025.02.16"]
[Round "6"]
[White "Terbe, Zsuzsanna"]
[Black "Skreko, Igor"]
[Result "1-0"]
[Annotator "ChessBase"]
[ECO "E73"]
[WhiteElo "2165"]
[BlackElo "2261"]
[PlyCount "213"]
[EventDate "2024.09.12"]
[EventType "team-tourn"]
[EventCountry "SVK"]
[SourceTitle "playchess.com"]
[Source "ChessBase"]
[SourceQuality "1"]
[TimeControl "5400+30"]

1. d4 {[%emt 0:00:03]} Nf6 {[%emt 0:00:06]} 2. c4 {[%emt 0:00:08]} g6 {[%emt 0:00:05]} 3. Nc3 {[%emt 0:00:05]} Bg7 {[%emt 0:00:05]} 4. e4 {[%emt 0:00:00]} d6 {[%emt 0:00:00]} 5. Be2 {[%emt 0:00:00]} O-O {[%emt 0:00:00]} 6. Bg5 {[%emt 0:00:47]} Na6 {[%emt 0:00:10]} 7. Qd2 {[%emt 0:00:19]} e5 {[%emt 0:00:21]} 8. d5 {[%emt 0:00:11]} Qe8 {[%emt 0:05:40]} 9. f3 {[%emt 0:00:46]} Nh5 {[%emt 0:00:53]} 10. Bd1 {[%emt 0:01:01]} f5 {[%emt 0:00:00]} 11. Nge2 {[%emt 0:05:12]} Nf4 {[%emt 0:15:51]} 12. Nxf4 {[%emt 0:00:44]} exf4 {[%emt 0:02:04]} 13. O-O {[%emt 0:00:15]} Qe5 {[%emt 0:00:00]} 14. Bxf4 Qd4+ {[%emt 0:00:41]} 15. Be3 {[%emt 0:01:20]} Qxd2 {[%emt 0:00:00]} 16. Bxd2 {[%emt 0:22:48]} fxe4 {[%emt 0:12:23]} 17. f4 {[%emt 0:08:22]} Bd4+ {[%emt 0:00:00]} 18. Kh1 Nc5 {[%emt 0:05:15]} 19. Nb5 {[%emt 0:04:55]} Bxb2 {[%emt 0:00:00]} 20. Rb1 {[%emt 0:00:10]} Bg7 {[%emt 0:00:20]} 21. Nxc7 {[%emt 0:00:38]} Rb8 {[%emt 0:14:08]} 22. Be3 {[%emt 0:24:04]} Bd7 23. Bc2 {[%emt 0:07:33]} Rfc8 {[%emt 0:07:32]} 24. Bxc5 {[%emt 0:00:10]} dxc5 25. Ne6 {[%emt 0:03:04]} Bxe6 {[%emt 0:00:00]} 26. dxe6 {[%emt 0:00:00]} e3 {[%emt 0:12:13]} 27. Rfe1 {[%emt 0:00:48]} Bd4 {[%emt 0:00:04]} 28. Be4 {[%emt 0:04:57]} Rc7 {[%emt 0:02:35]} 29. a4 {[%emt 0:01:26]} b6 {[%emt 0:01:19]} 30. g3 {[%emt 0:01:45]} Kg7 {[%emt 0:00:48]} 31. Kg2 {[%emt 0:00:17]} Kf6 {[%emt 0:00:04]} 32. Bd5 {[%emt 0:01:58]} a6 {[%emt 0:01:20]} 33. Kf3 {[%emt 0:09:40]} b5 {[%emt 0:00:27]} 34. axb5 {[%emt 0:00:00]} axb5 {[%emt 0:01:25]} 35. Rxb5 {[%emt 0:00:08]} Rxb5 {[%emt 0:00:05]} 36. cxb5 {[%emt 0:02:08]} c4 37. Rc1 {[%emt 0:12:05]} c3 {[%emt 0:01:11]} 38. Ke4 {[%emt 0:00:50]} Bb6 {[%emt 0:00:42]} 39. Bc6 {[%emt 0:01:48]} Kxe6 {[%emt 0:00:29]} 40. Kd3 {[%emt 0:00:00]} Ra7 {[%emt 0:02:30]} 41. Rxc3 {[%emt 0:01:21]} Ra2 {[%emt 0:01:01]} 42. Rc2 {[%emt 0:03:49]} Ra3+ {[%emt 0:09:38]} 43. Ke2 {[%emt 0:06:12]} Rb3 {[%emt 0:06:52]} 44. Kf3 {[%emt 0:03:18]} Rb1 {[%emt 0:00:39]} 45. Ke2 {[%emt 0:16:17]} Rb3 {[%emt 0:01:51]} 46. Ra2 {[%emt 0:03:00]} Kd6 {[%emt 0:01:49]} 47. h4 {[%emt 0:08:10]} Bc5 {[%emt 0:00:55]} 48. Rc2 {[%emt 0:01:07]} Bb6 {[%emt 0:01:25]} 49. Ra2 {[%emt 0:00:55]} Rb1 {[%emt 0:00:55]} 50. Rc2 {[%emt 0:04:12]} Bd4 {[%emt 0:00:58]} 51. Kd3 {[%emt 0:00:54]} Bc5 {[%emt 0:00:22]} 52. Ke2 {[%emt 0:00:38]} Rb3 {[%emt 0:00:43]} 53. Be8 {[%emt 0:03:01]} Bd4 {[%emt 0:00:35]} 54. Bc6 {[%emt 0:01:21]} Bb6 {[%emt 0:00:26]} 55. Ra2 {[%emt 0:00:00]} Ke7 {[%emt 0:01:07]} 56. Rc2 {[%emt 0:01:15]} Kf6 {[%emt 0:01:09]} 57. Ra2 {[%emt 0:03:39]} Ke6 {[%emt 0:00:40]} 58. Rc2 {[%emt 0:00:59]} Rb1 {[%emt 0:00:24]} 59. Ra2 {[%emt 0:03:04]} Kf5 {[%emt 0:00:37]} 60. Bd7+ {[%emt 0:00:47]} Ke4 {[%emt 0:01:19]} 61. Ra4+ {[%emt 0:00:13]} Kd5 {[%emt 0:00:12]} 62. Bc6+ {[%emt 0:00:22]} Kd6 {[%emt 0:00:00]} 63. Ra2 {[%emt 0:00:28]} Ke6 {[%emt 0:00:09]} 64. Rc2 {[%emt 0:00:00]} Kf5 65. Bd7+ {[%emt 0:00:00]} Ke4 66. Rc4+ {[%emt 0:01:38]} Kd5 {[%emt 0:00:00]} 67. Be6+ Kxe6 {[%emt 0:01:15]} 68. Rc6+ {[%emt 0:00:35]} Kf5 {[%emt 0:00:11]} 69. Rxb6 {[%emt 0:05:50]} Rb3 {[%emt 0:00:54]} 70. Rb7 {[%emt 0:01:30]} h5 {[%emt 0:00:23]} 71. Rb6 {[%emt 0:02:17]} Ke4 {[%emt 0:00:17]} 72. Re6+ {[%emt 0:00:19]} Kd4 {[%emt 0:00:36]} 73. Rd6+ {[%emt 0:00:00]} Ke4 {[%emt 0:00:00]} 74. Re6+ {[%emt 0:00:00]} Kd4 {[%emt 0:03:35]} 75. Kf3 {[%emt 0:01:55]} e2+ {[%emt 0:00:22]} 76. Kxe2 {[%emt 0:00:39]} Rxg3 {[%emt 0:00:00]} 77. b6 {[%emt 0:04:01]} Rb3 {[%emt 0:00:15]} 78. Rxg6 {[%emt 0:00:00]} Ke4 {[%emt 0:00:06]} 79. Rf6 {[%emt 0:00:00]} Rb2+ {[%emt 0:00:00]} 80. Kd1 {[%emt 0:00:00]} Kd3 {[%emt 0:00:00]} 81. Kc1 {[%emt 0:00:12]} Rb4 {[%emt 0:01:00]} 82. Rd6+ {[%emt 0:00:44]} Ke4 {[%emt 0:00:49]} 83. Kc2 {[%emt 0:00:35]} Kxf4 {[%emt 0:00:32]} 84. Kc3 {[%emt 0:00:16]} Rb1 {[%emt 0:00:47]} 85. Rd4+ {[%emt 0:01:09]} Ke5 {[%emt 0:00:14]} 86. Rb4 {[%emt 0:00:00]} Rc1+ {[%emt 0:00:00]} 87. Kd3 Rc8 {[%emt 0:08:24]} 88. Rb5+ {[%emt 0:00:43]} Kd6 {[%emt 0:00:07]} 89. Rxh5 {[%emt 0:00:00]} Kc6 {[%emt 0:00:00]} 90. Rh6+ {[%emt 0:00:00]} Kb7 {[%emt 0:00:00]} 91. Kd4 {[%emt 0:00:38]} Rc1 {[%emt 0:00:43]} 92. Kd5 {[%emt 0:00:00]} Rd1+ {[%emt 0:00:00]} 93. Ke5 {[%emt 0:00:05]} Re1+ {[%emt 0:00:03]} 94. Kf5 {[%emt 0:00:10]} Rf1+ {[%emt 0:00:00]} 95. Kg5 {[%emt 0:01:45]} Rc1 {[%emt 0:00:14]} 96. Rg6 {[%emt 0:01:01]} Rc5+ {[%emt 0:00:00]} 97. Kh6 {[%emt 0:00:34]} Rd5 {[%emt 0:00:00]} 98. h5 Rc5 {[%emt 0:00:55]} 99. Rf6 {[%emt 0:00:27]} Rc1 {[%emt 0:00:44]} 100. Kh7 {[%emt 0:00:25]} Rg1 {[%emt 0:00:31]} 101. h6 {[%emt 0:00:04]} Rg2 {[%emt 0:00:25]} 102. Rg6 {[%emt 0:00:00]} Rd2 103. Kh8 {[%emt 0:01:46]} Rd8+ {[%emt 0:00:31]} 104. Rg8 {[%emt 0:00:58]} Rd1 {[%emt 0:00:16]} 105. h7 {[%emt 0:00:08]} Kxb6 {[%emt 0:00:07]} 106. Kg7 {[%emt 0:00:05]} Rg1+ {[%emt 0:00:04]} 107. Kf6 {[%emt 0:00:00]} 1-0

[Event "Slovakian ECo-C Extraliga 2024-25"]
[Site "Slovakia"]
[Date "2025.02.16"]
[Round "6"]
[White "Karas, Marek"]
[Black "Borosova, Zuzana"]
[Result "1/2-1/2"]
[Annotator "ChessBase"]
[ECO "A45"]
[WhiteElo "2160"]
[BlackElo "2190"]
[PlyCount "179"]
[EventDate "2024.09.12"]
[EventType "team-tourn"]
[EventCountry "SVK"]
[SourceTitle "playchess.com"]
[Source "ChessBase"]
[SourceQuality "1"]
[TimeControl "5400+30"]

1. d4 {[%emt 0:00:48]} Nf6 {[%emt 0:02:37]} 2. Bg5 {[%emt 0:03:02]} Ne4 {[%emt 0:01:17]} 3. Bf4 {[%emt 0:00:10]} d5 {[%emt 0:03:06]} 4. f3 {[%emt 0:00:33]} Nf6 {[%emt 0:01:14]} 5. e4 {[%emt 0:12:04]} e6 {[%emt 0:03:09]} 6. Nc3 {[%emt 0:08:43]} c6 {[%emt 0:07:07]} 7. a3 {[%emt 0:02:52]} Qb6 {[%emt 0:02:31]} 8. Rb1 {[%emt 0:13:58]} c5 {[%emt 0:11:59]} 9. Nb5 {[%emt 0:01:44]} Na6 {[%emt 0:01:09]} 10. e5 {[%emt 0:02:10]} Nd7 {[%emt 0:04:12]} 11. c3 {[%emt 0:06:41]} Nc7 {[%emt 0:01:45]} 12. Nxc7+ {[%emt 0:00:31]} Qxc7 {[%emt 0:05:05]} 13. Qd2 {[%emt 0:04:35]} Nb6 {[%emt 0:22:27]} 14. Be3 Bd7 {[%emt 0:10:56]} 15. Bd3 {[%emt 0:10:23]} c4 {[%emt 0:02:02]} 16. Be2 {[%emt 0:00:47]} Na4 {[%emt 0:01:31]} 17. Nh3 {[%emt 0:05:06]} Be7 {[%emt 0:02:06]} 18. O-O b5 {[%emt 0:01:24]} 19. Bg5 {[%emt 0:06:38]} Bc6 {[%emt 0:06:30]} 20. f4 g6 {[%emt 0:02:00]} 21. Nf2 h5 {[%emt 0:04:54]} 22. Nh3 {[%emt 0:01:53]} O-O-O {[%emt 0:04:11]} 23. Qe1 {[%emt 0:00:57]} Rd7 {[%emt 0:00:52]} 24. Bxe7 {[%emt 0:00:00]} Rxe7 {[%emt 0:00:28]} 25. Qh4 {[%emt 0:00:00]} Qd8 26. Ng5 {[%emt 0:00:00]} Rb7 27. Qh3 {[%emt 0:03:26]} Qe8 {[%emt 0:03:28]} 28. Bd1 {[%emt 0:00:22]} Kb8 {[%emt 0:02:29]} 29. Qe3 {[%emt 0:00:40]} Qe7 {[%emt 0:01:29]} 30. Bxa4 {[%emt 0:00:00]} bxa4 {[%emt 0:00:21]} 31. g3 {[%emt 0:00:30]} Ka8 {[%emt 0:01:08]} 32. Rf2 {[%emt 0:00:00]} Rhb8 {[%emt 0:05:49]} 33. Kg2 {[%emt 0:00:13]} Rb3 {[%emt 0:01:00]} 34. Qc1 {[%emt 0:00:09]} Qb7 {[%emt 0:04:29]} 35. f5 {[%emt 0:01:23]} gxf5 {[%emt 0:00:17]} 36. Qd1 {[%emt 0:00:29]} Be8 {[%emt 0:02:04]} 37. Nh7 {[%emt 0:01:54]} f6 {[%emt 0:00:37]} 38. Nxf6 {[%emt 0:00:14]} Bg6 {[%emt 0:08:02]} 39. Qc2 {[%emt 0:00:50]} Qf7 {[%emt 0:00:00]} 40. Rf4 {[%emt 0:00:16]} Qb7 {[%emt 0:00:00]} 41. Rf2 {[%emt 0:22:25]} Qg7 {[%emt 0:00:00]} 42. Rf4 {[%emt 0:02:40]} R8b7 {[%emt 0:03:13]} 43. Kh3 {[%emt 0:01:24]} Qh6 {[%emt 0:00:00]} 44. Qg2 a6 {[%emt 0:05:22]} 45. Qc2 {[%emt 0:00:00]} Ka7 {[%emt 0:00:00]} 46. Kg2 Qg5 {[%emt 0:00:00]} 47. h4 Qh6 {[%emt 0:04:10]} 48. Kh3 {[%emt 0:00:00]} Qg7 49. Kh2 {[%emt 0:02:45]} R7b5 {[%emt 0:02:06]} 50. Kg2 {[%emt 0:02:02]} Kb8 {[%emt 0:00:00]} 51. Kh2 Kc8 {[%emt 0:00:53]} 52. Kg2 {[%emt 0:00:38]} Qh6 {[%emt 0:01:37]} 53. Kh2 {[%emt 0:00:12]} Rb7 {[%emt 0:01:34]} 54. Kg2 {[%emt 0:00:42]} R7b6 {[%emt 0:00:00]} 55. Kh2 {[%emt 0:00:00]} Qg7 {[%emt 0:01:13]} 56. Kg2 {[%emt 0:01:11]} Kd8 {[%emt 0:00:00]} 57. Kh2 {[%emt 0:00:00]} Rb7 58. Kg2 {[%emt 0:02:00]} Qh6 {[%emt 0:00:00]} 59. Kh2 {[%emt 0:00:29]} Rg7 {[%emt 0:00:00]} 60. Ra1 {[%emt 0:00:00]} Ke7 {[%emt 0:01:43]} 61. Ra2 {[%emt 0:01:27]} Kf8 {[%emt 0:00:34]} 62. Qd2 {[%emt 0:01:59]} Rf7 {[%emt 0:00:34]} 63. Rf2 {[%emt 0:00:23]} Qxd2 {[%emt 0:00:00]} 64. Rxd2 {[%emt 0:00:52]} Rg7 {[%emt 0:01:09]} 65. Rf2 {[%emt 0:00:22]} Rgb7 {[%emt 0:00:00]} 66. Kg2 {[%emt 0:01:04]} Kg7 {[%emt 0:00:16]} 67. Kf3 {[%emt 0:00:00]} Kh6 {[%emt 0:00:00]} 68. Kf4 {[%emt 0:00:00]} Rg7 {[%emt 0:00:54]} 69. Ra1 {[%emt 0:00:10]} Rb8 {[%emt 0:00:47]} 70. Rd1 {[%emt 0:00:00]} Be8 {[%emt 0:00:23]} 71. Rg1 {[%emt 0:00:31]} Bc6 {[%emt 0:00:53]} 72. Rgg2 {[%emt 0:01:03]} Rg6 {[%emt 0:00:55]} 73. Kf3 {[%emt 0:00:00]} Rb7 {[%emt 0:01:25]} 74. Rd2 {[%emt 0:00:37]} Rbg7 {[%emt 0:01:00]} 75. Rdf2 {[%emt 0:00:00]} Rf7 {[%emt 0:00:49]} 76. Kf4 {[%emt 0:00:09]} Rb7 {[%emt 0:00:37]} 77. Rd2 {[%emt 0:00:00]} Rgg7 {[%emt 0:00:00]} 78. Rdf2 {[%emt 0:00:28]} Rb8 {[%emt 0:00:26]} 79. Rd2 {[%emt 0:00:00]} Kg6 {[%emt 0:00:35]} 80. Rdf2 {[%emt 0:00:13]} Rf7 {[%emt 0:00:33]} 81. Rd2 {[%emt 0:00:20]} Rfb7 {[%emt 0:01:32]} 82. Rdf2 {[%emt 0:00:19]} Rf8 {[%emt 0:00:00]} 83. Rd2 {[%emt 0:00:00]} Rg7 {[%emt 0:00:00]} 84. Rdf2 {[%emt 0:00:51]} Kh6 {[%emt 0:00:11]} 85. Ke3 {[%emt 0:00:00]} Rff7 {[%emt 0:00:00]} 86. Kf4 {[%emt 0:01:07]} Kg6 {[%emt 0:01:21]} 87. Ke3 {[%emt 0:00:00]} Kh6 {[%emt 0:00:47]} 88. Rd2 {[%emt 0:00:00]} Kg6 {[%emt 0:00:00]} 89. Rdf2 {[%emt 0:00:26]} Kh6 {[%emt 0:00:00]} 90. Rd2 {[%emt 0:00:00]} 1/2-1/2

[Event "Slovakian ECo-C Extraliga 2024-25"]
[Site "Slovakia"]
[Date "2025.02.16"]
[Round "6"]
[White "Kubala, Jan"]
[Black "Meszaros, Casey Ryan"]
[Result "0-1"]
[Annotator "NA"]
[ECO "C72"]
[WhiteElo "2112"]
[BlackElo "2003"]
[PlyCount "50"]
[EventDate "2024.09.12"]
[EventType "team-tourn"]
[EventCountry "SVK"]
[SourceTitle "playchess.com"]
[Source "ChessBase"]
[SourceQuality "1"]
[TimeControl "5400+30"]

1. e4 {[%emt 0:00:13]} e5 {[%emt 0:00:39]} 2. Nf3 {[%emt 0:00:30]} Nc6 {[%emt 0:00:08]} 3. Bb5 a6 {[%emt 0:00:31]} 4. Ba4 {[%emt 0:01:35]} d6 {[%emt 0:01:14]} 5. O-O {[%emt 0:00:34]} Bg4 {[%emt 0:02:39]} 6. c3 {[%emt 0:00:32]} Qf6 {[%emt 0:03:54]} 7. d3 {[%emt 0:05:07]} Nge7 {[%emt 0:04:04]} 8. Be3 {[%emt 0:02:05]} Bxf3 {[%emt 0:23:55]} 9. Qxf3 {[%emt 0:00:58]} Qxf3 {[%emt 0:00:22]} 10. gxf3 {[%emt 0:00:08]} O-O-O {[%emt 0:01:25]} 11. Rd1 {[%emt 0:28:24]} f5 {[%emt 0:12:06]} 12. f4 {[%emt 0:03:42]} d5 {[%emt 0:14:18]} 13. Bxc6 {[%emt 0:13:06]} Nxc6 {[%emt 0:00:28]} 14. exf5 {[%emt 0:03:55]} d4 {[%emt 0:01:22]} 15. cxd4 {[%emt 0:02:35]} exd4 {[%emt 0:00:25]} 16. Bd2 {[%emt 0:02:11]} Bd6 {[%emt 0:07:46]} 17. f6 {[%emt 0:06:19]} Rdf8 {[%emt 0:04:26]} 18. fxg7 {[%emt 0:04:13]} Rhg8 {[%emt 0:00:13]} 19. Na3 {[%emt 0:00:23]} Rxg7+ {[%emt 0:00:08]} 20. Kh1 {[%emt 0:07:58]} Rgf7 {[%emt 0:00:50]} 21. Kg2 {[%emt 0:03:06]} Bxf4 {[%emt 0:01:11]} 22. Bxf4 {[%emt 0:00:13]} Rxf4 {[%emt 0:00:01]} 23. Rd2 {[%emt 0:00:20]} Ne5 {[%emt 0:01:29]} 24. Nc2 {[%emt 0:06:53]} Nf3 {[%emt 0:08:21]} 25. Re2 {[%emt 0:03:20]} Rg4+ {[%emt 0:00:27]} 0-1

[Event "Slovakian ECo-C Extraliga 2024-25"]
[Site "Slovakia"]
[Date "2025.02.16"]
[Round "6"]
[White "Jozefek, Michal"]
[Black "Sarkozi, Szabolcs"]
[Result "1-0"]
[Annotator "NA"]
[ECO "A96"]
[WhiteElo "2099"]
[BlackElo "2102"]
[PlyCount "57"]
[EventDate "2024.09.12"]
[EventType "team-tourn"]
[EventCountry "SVK"]
[SourceTitle "playchess.com"]
[Source "ChessBase"]
[SourceQuality "1"]
[TimeControl "5400+30"]

1. d4 {[%emt 0:00:38]} f5 {[%emt 0:02:07]} 2. g3 {[%emt 0:00:14]} Nf6 {[%emt 0:00:00]} 3. Bg2 {[%emt 0:01:02]} e6 {[%emt 0:02:32]} 4. Nf3 {[%emt 0:00:32]} Be7 {[%emt 0:01:22]} 5. c4 {[%emt 0:00:22]} d6 {[%emt 0:01:55]} 6. Nc3 {[%emt 0:00:25]} O-O {[%emt 0:05:59]} 7. O-O {[%emt 0:03:37]} a5 {[%emt 0:04:04]} 8. Re1 {[%emt 0:01:22]} Ne4 {[%emt 0:01:38]} 9. Qd3 {[%emt 0:05:08]} Nxc3 {[%emt 0:00:05]} 10. Qxc3 {[%emt 0:01:53]} Bf6 {[%emt 0:03:47]} 11. e4 {[%emt 0:09:13]} fxe4 {[%emt 0:00:03]} 12. Rxe4 {[%emt 0:02:51]} c5 {[%emt 0:15:10]} 13. Qc2 {[%emt 0:05:47]} cxd4 {[%emt 0:00:48]} 14. Nxd4 {[%emt 0:07:27]} e5 {[%emt 0:00:00]} 15. Nb5 {[%emt 0:00:48]} Bf5 {[%emt 0:00:41]} 16. Be3 {[%emt 0:09:21]} Nc6 {[%emt 0:01:09]} 17. Rd1 {[%emt 0:16:46]} Be7 {[%emt 0:21:38]} 18. Nxd6 {[%emt 0:00:40]} Bxd6 {[%emt 0:00:00]} 19. c5 {[%emt 0:09:41]} Nd4 {[%emt 0:07:32]} 20. Bxd4 {[%emt 0:00:18]} Bxe4 {[%emt 0:00:41]} 21. Bxe4 {[%emt 0:00:30]} exd4 {[%emt 0:02:12]} 22. Rxd4 {[%emt 0:13:41]} Rc8 {[%emt 0:05:33]} 23. Rxd6 {[%emt 0:01:38]} Qe7 {[%emt 0:11:31]} 24. Bxh7+ {[%emt 0:00:20]} Kh8 {[%emt 0:00:46]} 25. Rd5 {[%emt 0:06:45]} b6 {[%emt 0:03:43]} 26. Rh5 {[%emt 0:08:15]} Rc6 {[%emt 0:02:17]} 27. Bg6+ {[%emt 0:00:00]} Kg8 {[%emt 0:00:18]} 28. Qc4+ {[%emt 0:00:25]} Qe6 {[%emt 0:06:24]} 29. Rh8+ {[%emt 0:00:00]} 1-0

[Event "Slovakian ECo-C Extraliga 2024-25"]
[Site "Slovakia"]
[Date "2025.02.16"]
[Round "6"]
[White "Striskova, Lucia"]
[Black "Sedlacek, Pavol"]
[Result "1/2-1/2"]
[Annotator "ChessBase"]
[ECO "B15"]
[WhiteElo "2076"]
[BlackElo "2183"]
[PlyCount "62"]
[EventDate "2024.09.12"]
[EventType "team-tourn"]
[EventCountry "SVK"]
[SourceTitle "playchess.com"]
[Source "ChessBase"]
[SourceQuality "1"]
[TimeControl "5400+30"]

1. e4 {[%emt 0:00:12]} c6 {[%emt 0:00:05]} 2. d4 {[%emt 0:00:13]} d5 {[%emt 0:00:05]} 3. Nc3 {[%emt 0:00:48]} dxe4 {[%emt 0:00:14]} 4. Nxe4 {[%emt 0:00:08]} g6 {[%emt 0:00:09]} 5. Bc4 {[%emt 0:02:51]} Bg7 {[%emt 0:00:19]} 6. c3 {[%emt 0:02:46]} Nf6 {[%emt 0:00:23]} 7. Nxf6+ {[%emt 0:04:34]} exf6 {[%emt 0:00:07]} 8. Ne2 {[%emt 0:00:28]} O-O {[%emt 0:00:10]} 9. O-O {[%emt 0:04:33]} a5 {[%emt 0:01:27]} 10. Be3 {[%emt 0:04:39]} Na6 {[%emt 0:00:26]} 11. Bd3 {[%emt 0:00:21]} Nc7 {[%emt 0:00:33]} 12. c4 {[%emt 0:00:22]} Re8 {[%emt 0:01:06]} 13. Qc2 {[%emt 0:01:03]} Bg4 {[%emt 0:06:21]} 14. h3 {[%emt 0:03:41]} Bxe2 {[%emt 0:06:50]} 15. Bxe2 {[%emt 0:00:07]} f5 {[%emt 0:01:34]} 16. Rad1 {[%emt 0:01:48]} Qd6 {[%emt 0:04:19]} 17. Qc1 {[%emt 0:09:26]} Rad8 {[%emt 0:04:29]} 18. Bf3 {[%emt 0:02:01]} Qb4 {[%emt 0:09:34]} 19. d5 {[%emt 0:15:58]} cxd5 {[%emt 0:12:13]} 20. cxd5 {[%emt 0:00:15]} Na6 {[%emt 0:12:23]} 21. b3 {[%emt 0:07:41]} Rc8 {[%emt 0:01:31]} 22. Qb1 {[%emt 0:02:29]} Nc5 {[%emt 0:02:58]} 23. Bxc5 {[%emt 0:08:29]} Rxc5 {[%emt 0:06:07]} 24. Rfe1 {[%emt 0:02:01]} Rd8 {[%emt 0:01:14]} 25. Rc1 {[%emt 0:05:48]} Bf8 {[%emt 0:01:19]} 26. Rxc5 {[%emt 0:03:11]} Bxc5 {[%emt 0:00:43]} 27. Re2 {[%emt 0:00:13]} Bd6 {[%emt 0:03:11]} 28. Qc1 {[%emt 0:00:53]} Qd4 {[%emt 0:02:58]} 29. Qd2 {[%emt 0:02:25]} Rc8 {[%emt 0:02:42]} 30. g3 {[%emt 0:04:07]} Qc5 {[%emt 0:03:42]} 31. Kg2 {[%emt 0:00:40]} Qc7 {[%emt 0:01:27]} 1/2-1/2

[Event "Slovakian ECo-C Extraliga 2024-25"]
[Site "Slovakia"]
[Date "2025.02.16"]
[Round "6"]
[White "Durana, Jonas"]
[Black "Straka, Jozef"]
[Result "1/2-1/2"]
[Annotator "ChessBase"]
[ECO "C50"]
[WhiteElo "2006"]
[BlackElo "2279"]
[PlyCount "105"]
[EventDate "2024.09.12"]
[EventType "team-tourn"]
[EventCountry "SVK"]
[SourceTitle "playchess.com"]
[Source "ChessBase"]
[SourceQuality "1"]
[TimeControl "5400+30"]

1. e4 {[%emt 0:00:02]} e5 {[%emt 0:00:02]} 2. Nf3 {[%emt 0:00:13]} Nc6 {[%emt 0:00:06]} 3. Bc4 {[%emt 0:00:03]} Bc5 {[%emt 0:00:17]} 4. d3 {[%emt 0:00:21]} Nf6 {[%emt 0:00:47]} 5. Nc3 {[%emt 0:00:04]} h6 {[%emt 0:00:27]} 6. a3 {[%emt 0:00:23]} a6 {[%emt 0:03:16]} 7. Be3 {[%emt 0:00:05]} Bxe3 {[%emt 0:01:40]} 8. fxe3 {[%emt 0:00:05]} d6 {[%emt 0:00:49]} 9. O-O {[%emt 0:00:23]} O-O {[%emt 0:03:32]} 10. d4 {[%emt 0:05:44]} Bg4 {[%emt 0:06:12]} 11. Qd3 {[%emt 0:00:16]} Qb8 {[%emt 0:13:32]} 12. Kh1 {[%emt 0:27:51]} Qa7 {[%emt 0:02:29]} 13. Rad1 {[%emt 0:09:58]} Rae8 {[%emt 0:01:23]} 14. Bd5 {[%emt 0:09:28]} Nxd5 {[%emt 0:06:24]} 15. Nxd5 {[%emt 0:04:35]} Qb8 {[%emt 0:01:43]} 16. h3 {[%emt 0:00:15]} Bh5 {[%emt 0:02:31]} 17. g4 {[%emt 0:00:29]} Bg6 {[%emt 0:00:33]} 18. Nh4 {[%emt 0:00:20]} Bh7 {[%emt 0:09:44]} 19. Nf5 {[%emt 0:00:04]} Kh8 {[%emt 0:01:00]} 20. c4 {[%emt 0:17:35]} Nd8 {[%emt 0:06:06]} 21. Nc3 {[%emt 0:02:18]} f6 {[%emt 0:05:35]} 22. Rd2 {[%emt 0:04:24]} Nf7 {[%emt 0:05:44]} 23. Rdf2 {[%emt 0:00:16]} c6 {[%emt 0:06:22]} 24. d5 {[%emt 0:01:08]} c5 {[%emt 0:01:46]} 25. Qe2 {[%emt 0:09:42]} Qc7 {[%emt 0:03:06]} 26. h4 {[%emt 0:01:07]} Qd7 {[%emt 0:01:37]} 27. Rf3 {[%emt 0:01:26]} g6 {[%emt 0:14:11]} 28. Ng3 {[%emt 0:00:04]} Qxg4 {[%emt 0:00:07]} 29. Qh2 {[%emt 0:04:01]} g5 {[%emt 0:03:02]} 30. h5 {[%emt 0:01:50]} Qd7 {[%emt 0:00:55]} 31. Rxf6 {[%emt 0:00:14]} Qe7 {[%emt 0:00:25]} 32. Qf2 {[%emt 0:00:10]} Kg8 {[%emt 0:00:19]} 33. Re6 {[%emt 0:00:58]} Qd7 {[%emt 0:00:09]} 34. Qf6 {[%emt 0:00:48]} Qd8 {[%emt 0:00:39]} 35. Rxe8 {[%emt 0:00:30]} Qxe8 {[%emt 0:00:10]} 36. Kg2 {[%emt 0:00:26]} Qd8 {[%emt 0:00:33]} 37. Qe6 {[%emt 0:00:26]} Kg7 {[%emt 0:00:56]} 38. Nf5+ {[%emt 0:00:22]} Bxf5 {[%emt 0:00:07]} 39. exf5 {[%emt 0:00:05]} Nh8 {[%emt 0:01:08]} 40. Ne4 {[%emt 0:00:07]} Qe8 {[%emt 0:00:35]} 41. f6+ {[%emt 0:01:36]} Kh7 {[%emt 0:00:26]} 42. Qf5+ {[%emt 0:00:41]} Kg8 {[%emt 0:00:19]} 43. Nxd6 {[%emt 0:00:00]} Qxh5 {[%emt 0:00:00]} 44. Qxe5 {[%emt 0:00:00]} Ng6 {[%emt 0:00:00]} 45. f7+ {[%emt 0:00:00]} Kh7 {[%emt 0:00:00]} 46. Qf5 {[%emt 0:00:00]} Qe2+ {[%emt 0:00:00]} 47. Rf2 {[%emt 0:00:00]} Qxe3 {[%emt 0:00:00]} 48. Ne8 {[%emt 0:00:00]} Qd4 {[%emt 0:00:00]} 49. Nf6+ {[%emt 0:00:30]} Kg7 {[%emt 0:00:00]} 50. Nh5+ {[%emt 0:01:03]} Kh7 {[%emt 0:00:00]} 51. Nf6+ {[%emt 0:00:28]} Kg7 {[%emt 0:00:00]} 52. Ne8+ {[%emt 0:00:50]} Kh7 {[%emt 0:00:00]} 53. Nf6+ {[%emt 0:00:54]} 1/2-1/2